fUSD/lending_fUSD_20251102
["ID","MTS","AMOUNT","RATE_DAILY","PERIOD"]
[392886938,1762107784954,500.0,0.00030136,120]
[392886939,1762107785763,498.9853845,0.00030136,120]
[392886940,1762107786157,500.0,0.00030136,120]
[392886941,1762107786577,500.0,0.00030136,120]
[392886942,1762107787642,622.94293583,0.00030136,120]
[392886943,1762107787690,500.0,0.00030136,120]
[392886944,1762107789068,500.0,0.00030136,120]
[392886945,1762107789591,500.0,0.00030136,120]
[392886946,1762107790309,433.85747955,0.00030136,120]
[392886947,1762107790369,633.0953013,0.00030136,120]
[392886948,1762107791263,500.0,0.00030136,120]
[392886949,1762107791642,500.0,0.00030136,120]
[392886950,1762107792245,1005.01,0.00030136,120]
[392886951,1762107792756,500.0,0.00030136,120]
[392886953,1762107794258,500.0,0.00030136,120]
[392886954,1762107797367,500.0,0.00030136,120]
[392886955,1762107797989,500.0,0.00030136,120]
[392886956,1762107799481,500.0,0.00030136,120]
[392886957,1762107799804,500.0,0.00030136,120]
[392886958,1762107800199,500.0,0.00030136,120]
[392886959,1762107800317,500.0,0.00030136,120]
[392886960,1762107801297,500.0,0.00030136,120]
[392886961,1762107801694,500.0,0.00030136,120]
[392886962,1762107802341,500.0,0.00030136,120]
[392886963,1762107802388,548.55913301,0.00030136,120]
[392886964,1762107802669,500.0,0.00030136,120]
[392886965,1762107802934,500.0,0.00030136,120]
[392886966,1762107803653,500.0,0.00030136,120]
[392886967,1762107804307,500.0,0.00030136,120]
[392886968,1762107804533,500.0,0.00030136,120]
[392886970,1762107806978,500.0,0.00030136,120]
[392886971,1762107808659,500.0,0.00030136,120]
[392886972,1762107809615,500.0,0.00030136,120]
[392886973,1762107810288,500.0,0.00030136,120]
[392886974,1762107810805,500.0,0.00030136,120]
[392886975,1762107811995,540.28292197,0.00030136,120]
[392886976,1762107812497,500.0,0.00030136,120]
[392886977,1762107813355,500.0,0.00030136,120]
[392886978,1762107813798,500.0,0.00030136,120]
[392886979,1762107813922,500.0,0.00030136,120]
[392886980,1762107815569,500.0,0.00030136,120]
[392886981,1762107817387,500.0,0.00030136,120]
[392886982,1762107817816,596.96,0.00030136,120]
[392886983,1762107819717,628.14,0.00030136,120]
[392886984,1762107820382,519.1282035,0.00030136,120]
[392886985,1762107821197,727.26,0.00030136,120]
[392886986,1762107821655,500.0,0.00030136,120]
[392886987,1762107821766,152.0,0.00014938,3]
[392886988,1762107823186,500.0,0.00030136,120]
[392886989,1762107823380,500.0,0.00030136,120]
[392886990,1762107824113,500.0,0.00030136,120]
[392886991,1762107824177,500.0,0.00030136,120]
[392886992,1762107825024,500.0,0.00030136,120]
[392886993,1762107827490,500.0,0.00030136,120]
[392886994,1762107827763,516.43392714,0.00030136,120]
[392886995,1762107827951,500.0,0.00030136,120]
[392886996,1762107828421,500.0,0.00030136,120]
[392886997,1762107828504,500.0,0.00030136,120]
[392886998,1762107828938,500.0,0.00030136,120]
[392886999,1762107830808,500.0,0.00030136,120]
[392887000,1762107831510,500.0,0.00030136,120]
[392887001,1762107833021,522.1917498,0.00030136,120]
[392887002,1762107833414,500.0,0.00030136,120]
[392887003,1762107834188,500.0,0.00030136,120]
[392887004,1762107834254,500.0,0.00030136,120]
[392887005,1762107835911,557.13,0.00030136,120]
[392887006,1762107836240,500.0,0.00030136,120]
[392887007,1762107838289,500.0,0.00030136,120]
[392887008,1762107838810,500.0,0.00030136,120]
[392887009,1762107839973,530.260554,0.00030136,120]
[392887010,1762107840435,535.29654379,0.00030136,120]
[392887011,1762107841643,500.0,0.00030136,120]
[392887013,1762107843016,584.26,0.00030136,120]
[392887014,1762107843587,500.0,0.00030136,120]
[392887015,1762107844520,500.0,0.00030136,120]
[392887016,1762107846883,500.0,0.00030136,120]
[392887017,1762107847069,1096.11,0.00030136,120]
[392887018,1762107850662,500.0,0.00030136,120]
[392887019,1762107850993,500.0,0.00030136,120]
[392887020,1762107851199,500.0,0.00030136,120]
[392887021,1762107851584,633.64,0.00030136,120]
[392887022,1762107853020,569.57,0.00030136,120]
[392887023,1762107854577,500.0,0.00030136,120]
[392887024,1762107854771,500.0,0.00030136,120]
[392887025,1762107854827,532.90894384,0.00030136,120]
[392887026,1762107855667,500.0,0.00030136,120]
[392887027,1762107856625,500.0,0.00030136,120]
[392887028,1762107856793,500.0,0.00030136,120]
[392887029,1762107856868,500.0,0.00030136,120]
[392887030,1762107856981,533.69196006,0.00030136,120]
[392887031,1762107857373,500.0,0.00030136,120]
[392887032,1762107857998,500.0,0.00030136,120]
[392887033,1762107859453,500.0,0.00030136,120]
[392887034,1762107861325,500.0,0.00030136,120]
[392887035,1762107861923,500.0,0.00030136,120]
[392887036,1762107862390,208.63325417,0.00030136,120]
[392887037,1762107862704,501.13,0.00030136,120]
[392887038,1762107863642,1866.07,0.00030136,120]
[392887039,1762107864489,460.77080497,0.00030136,120]
[392887040,1762107865782,500.0,0.00030136,120]
[392887041,1762107868851,1147.76,0.00030136,120]
[392887042,1762107869450,610.68,0.00030136,120]
[392887043,1762107870121,500.0,0.00030136,120]
[392887044,1762107873155,1244.34,0.00030136,120]
[392887045,1762107873203,500.0,0.00030136,120]
[392887046,1762107873807,557.66911786,0.00030136,120]
[392887047,1762107874701,622.30192306,0.00030136,120]
[392887048,1762107874804,558.01548876,0.00030136,120]
[392887049,1762107875420,500.0,0.00030136,120]
[392887050,1762107875644,500.0,0.00030136,120]
[392887051,1762107876489,767.0,0.00030136,120]
[392887052,1762107876742,197.40371292,0.00030136,120]
[392887053,1762107878675,500.0,0.00030136,120]
[392887054,1762107879437,500.0,0.00030136,120]
[392887055,1762107879648,500.0,0.00030136,120]
[392887056,1762107880683,559.4,0.00030136,120]
[392887057,1762107882054,512.79,0.00013902,2]
[392887058,1762107882745,500.0,0.00030136,120]
[392887059,1762107883713,500.0,0.00030136,120]
[392887060,1762107883875,568.51,0.00030136,120]
[392887061,1762107884158,500.0,0.00030136,120]
[392887062,1762107885220,555.69058577,0.00030136,120]
[392887064,1762107885470,893.21759391,0.00014574,2]
[392887065,1762107885703,500.0,0.00030136,120]
[392887066,1762107885895,500.0,0.00030136,120]
[392887067,1762107886334,520.87945493,0.00030136,120]
[392887068,1762107886881,500.0,0.00030136,120]
[392887069,1762107886948,500.0,0.00030136,120]
[392887070,1762107887524,500.0,0.00030136,120]
[392887071,1762107888053,500.0,0.00030136,120]
[392887072,1762107889145,500.0,0.00030136,120]
[392887073,1762107889934,569.8,0.00030136,120]
[392887074,1762107891405,500.0,0.00030136,120]
[392887075,1762107893456,500.0,0.00030136,120]
[392887076,1762107895841,500.0,0.00030136,120]
[392887077,1762107897514,500.0,0.00030136,120]
[392887078,1762107897828,500.0,0.00030136,120]
[392887079,1762107898293,723.49,0.00030136,120]
[392887080,1762107899423,500.0,0.00030136,120]
[392887081,1762107900129,870.02,0.00030136,120]
[392887083,1762107904363,500.0,0.00030136,120]
[392887084,1762107904724,500.0,0.00030136,120]
[392887085,1762107906090,686.09,0.00030136,120]
[392887086,1762107906214,500.0,0.00030136,120]
[392887087,1762107906378,750.88,0.00030136,120]
[392887093,1762107909553,500.0,0.00030136,120]
[392887094,1762107909920,500.0,0.00030136,120]
[392887095,1762107910369,150.0,0.00013488,2]
[392887096,1762107910673,150.0,0.00013488,2]
[392887098,1762107910732,500.0,0.00030136,120]
[392887099,1762107911539,500.0,0.00030136,120]
[392887100,1762107912161,500.0,0.00030136,120]
[392887101,1762107913934,150.0,0.00013488,2]
[392887102,1762107913999,500.0,0.00030136,120]
[392887103,1762107914374,376.80571297,0.00030136,120]
[392887104,1762107914586,385.1379787,0.00030136,120]
[392887105,1762107914641,500.0,0.00030136,120]
[392887106,1762107915259,500.0,0.00030136,120]
[392887107,1762107915749,500.0,0.00030136,120]
[392887108,1762107916393,500.0,0.00030136,120]
[392887109,1762107917109,172.45693908,0.00013488,2]
[392887110,1762107917186,150.0,0.00013488,2]
[392887111,1762107918454,500.0,0.00030136,120]
[392887112,1762107918979,500.0,0.00030136,120]
[392887113,1762107919814,605.85,0.00030136,120]
[392887114,1762107920308,171.78089762,0.00030136,120]
[392887115,1762107920457,500.0,0.00030136,120]
[392887116,1762107920736,500.0,0.00030136,120]
[392887118,1762107922082,500.0,0.00030136,120]
[392887119,1762107922806,500.0,0.00030136,120]
[392887120,1762107922897,757.35,0.00030136,120]
[392887122,1762107925335,626.48338441,0.00030136,120]
[392887123,1762107925522,500.0,0.00030136,120]
[392887124,1762107925778,500.0,0.00030136,120]
[392887125,1762107926927,500.0,0.00030136,120]
[392887126,1762107927496,500.0,0.00030136,120]
[392887127,1762107927772,500.0,0.00030136,120]
[392887128,1762107928410,675.43,0.00030136,120]
[392887129,1762107929558,500.0,0.00030136,120]
[392887130,1762107930097,150.0,0.00013488,2]
[392887131,1762107932568,500.0,0.00030136,120]
[392887132,1762107933119,768.77,0.00030136,120]
[392887133,1762107933363,500.0,0.00030136,120]
[392887134,1762107935822,500.0,0.00030136,120]
[392887135,1762107935858,1173.5234784,9e-05,2]
[392887136,1762107936298,500.0,0.00030136,120]
[392887137,1762107936656,500.0,0.00030136,120]
[392887138,1762107937753,668.72,0.00030136,120]
[392887139,1762107938378,500.0,0.00030136,120]
[392887140,1762107938432,500.0,0.00030136,120]
[392887141,1762107939155,500.0,0.00030136,120]
[392887142,1762107939701,500.0,0.00030136,120]
[392887143,1762107940814,500.0,0.00030136,120]
[392887144,1762107942223,479.55702229,0.00030136,120]
[392887145,1762107942961,527.88606721,0.00030136,120]
[392887146,1762107943412,243.19688421,0.00030136,120]
[392887147,1762107943482,507.1,0.00013906,2]
[392887148,1762107946703,500.0,0.00030136,120]
[392887149,1762107946838,500.0,0.00030136,120]
[392887150,1762107947295,500.0,0.00030136,120]
[392887151,1762107947607,500.0,0.00030136,120]
[392887152,1762107948288,686.15,0.00030136,120]
[392887153,1762107949488,500.0,0.00030136,120]
[392887154,1762107950877,500.0,0.00030136,120]
[392887155,1762107951008,500.0,0.00030136,120]
[392887156,1762107951116,500.0,0.00030136,120]
[392887157,1762107951693,500.0,0.00030136,120]
[392887158,1762107954273,586.09,0.00030136,120]
[392887159,1762107954846,500.0,0.00030136,120]
[392887160,1762107958075,500.0,0.00030136,120]
[392887161,1762107958419,500.0,0.00030136,120]
[392887162,1762107958471,543.81,0.00030136,120]
[392887163,1762107959855,500.0,0.00030136,120]
[392887164,1762107959915,500.0,0.00030136,120]
[392887165,1762107961706,3094.14398861,8e-05,2]
[392887166,1762107961729,652.1709882,8e-05,2]
[392887167,1762107962109,811.01,0.00030136,120]
[392887168,1762107962190,547.93,0.00030136,120]
[392887170,1762107963625,500.0,0.00030136,120]
[392887171,1762107964141,500.0,0.00030136,120]
[392887172,1762107964591,839.69,0.00030136,120]
[392887173,1762107964803,1171.88,0.00030136,120]
[392887174,1762107965836,587.91,0.00030136,120]
[392887175,1762107967100,866.98,0.00030136,120]
[392887176,1762107968802,602.07,0.00030136,120]
[392887177,1762107969724,447.44800413,0.00030136,120]
[392887178,1762107970432,500.0,0.00030136,120]
[392887179,1762107972220,500.0,0.00030136,120]
[392887180,1762107972702,621.91,0.00030136,120]
[392887181,1762107974003,500.0,0.00030136,120]
[392887182,1762107974318,561.27069466,0.00030136,120]
[392887183,1762107975474,500.0,0.00030136,120]
[392887184,1762107975792,500.0,0.00030136,120]
[392887185,1762107976209,500.0,0.00030136,120]
[392887186,1762107976793,924.64,0.00030136,120]
[392887187,1762107976879,500.0,0.00030136,120]
[392887188,1762107977392,935.7,0.00030136,120]
[392887189,1762107977826,500.0,0.00030136,120]
[392887190,1762107979014,500.0,0.00030136,120]
[392887191,1762107981618,500.0,0.00030136,120]
[392887192,1762107981900,500.0,0.00030136,120]
[392887193,1762107982098,500.0,0.00030136,120]
[392887194,1762107983023,679.84,0.00030136,120]
[392887195,1762107984243,1266.65,0.00030136,120]
[392887196,1762107984562,500.0,0.00030136,120]
[392887197,1762107985466,1064.26,0.00030136,120]
[392887198,1762107986026,500.0,0.00030136,120]
[392887199,1762107986424,500.0,0.00030136,120]
[392887200,1762107988466,1067.69,0.00030136,120]
[392887201,1762107989443,500.0,0.00030136,120]
[392887202,1762107990507,500.0,0.00030136,120]
[392887203,1762107990776,500.0,0.00030136,120]
[392887204,1762107991490,500.0,0.00030136,120]
[392887205,1762107991776,963.13,0.00030136,120]
[392887206,1762107993385,630.61,0.00030136,120]
[392887207,1762107993989,500.0,0.00030136,120]
[392887208,1762107996858,1305.91,0.00030136,120]
[392887209,1762107996958,500.0,0.00030136,120]
[392887210,1762107998448,500.0,0.00030136,120]
[392887211,1762107999095,500.0,0.00030136,120]
[392887212,1762107999517,500.0,0.00030136,120]
[392887213,1762107999688,500.0,0.00030136,120]
[392887214,1762107999911,500.0,0.00030136,120]
[392887215,1762108001076,500.0,0.00030136,120]
[392887216,1762108005259,500.0,0.00030136,120]
[392887217,1762108005461,221.66766337,0.00014572,2]
[392887218,1762108005897,500.0,0.00030136,120]
[392887219,1762108007229,500.0,0.00030136,120]
[392887220,1762108014013,1273.44,0.00030136,120]
[392887221,1762108014499,500.0,0.00030136,120]
[392887222,1762108015088,500.0,0.00030136,120]
[392887223,1762108017087,571.98,0.00030136,120]
[392887224,1762108017285,500.0,0.00030136,120]
[392887226,1762108023379,161.32029362,0.00030136,120]
[392887227,1762108025068,500.0,0.00030136,120]
[392887228,1762108025151,500.0,0.00030136,120]
[392887229,1762108025390,500.0,0.00030136,120]
[392887230,1762108025514,500.0,0.00030136,120]
[392887231,1762108026227,500.0,0.00030136,120]
[392887232,1762108026993,354.61857851,0.00030136,120]
[392887233,1762108028594,500.0,0.00030136,120]
[392887234,1762108028803,500.0,0.00030136,120]
[392887235,1762108030967,500.0,0.00030136,120]
[392887236,1762108031324,500.0,0.00030136,120]
[392887237,1762108032352,500.0,0.00030136,120]
[392887238,1762108034151,500.0,0.00030136,120]
[392887239,1762108034228,999.0,0.00013839,3]
[392887241,1762108035579,559.92,0.00030136,120]
[392887242,1762108035965,500.0,0.00030136,120]
[392887243,1762108036423,500.0,0.00030136,120]
[392887244,1762108036853,500.0,0.00030136,120]
[392887245,1762108038292,538.54419659,0.00030136,120]
[392887246,1762108038507,500.0,0.00030136,120]
[392887247,1762108040370,508.56228883,0.00030136,120]
[392887248,1762108040506,249.96241069,0.00030136,120]
[392887249,1762108042155,500.0,0.00030136,120]
[392887250,1762108042445,500.0,0.00030136,120]
[392887251,1762108042496,500.0,0.00030136,120]
[392887252,1762108043005,500.0,0.00030136,120]
[392887253,1762108043093,500.0,0.00030136,120]
[392887254,1762108045969,345.43545222,0.00030136,120]
[392887255,1762108046249,500.0,0.00030136,120]
[392887256,1762108046603,500.0,0.00030136,120]
[392887257,1762108047577,500.0,0.00030136,120]
[392887258,1762108047824,500.0,0.00030136,120]
[392887259,1762108048617,500.0,0.00030136,120]
[392887260,1762108048845,500.0,0.00030136,120]
[392887261,1762108050833,500.0,0.00030136,120]
[392887262,1762108050965,519.54064982,0.00030136,120]
[392887263,1762108051320,172.6981653,0.00030136,120]
[392887264,1762108051436,500.0,0.00030136,120]
[392887265,1762108053396,500.0,0.00030136,120]
[392887267,1762108054115,500.0,0.00030136,120]
[392887268,1762108057296,626.73,0.00030136,120]
[392887269,1762108057633,500.0,0.00030136,120]
[392887270,1762108058035,500.0,0.00030136,120]
[392887271,1762108058139,500.0,0.00030136,120]
[392887272,1762108060099,500.0,0.00030136,120]
[392887273,1762108060713,500.0,0.00030136,120]
[392887274,1762108062795,500.0,0.00030136,120]
[392887275,1762108062845,500.0,0.00013831,2]
[392887276,1762108062898,558.24727436,0.00030136,120]
[392887279,1762108065902,500.0,0.00030136,120]
[392887280,1762108066090,500.0,0.00030136,120]
[392887281,1762108066568,500.0,0.00030136,120]
[392887282,1762108066983,514.03927713,0.00030136,120]
[392887283,1762108067250,500.0,0.00030136,120]
[392887284,1762108068118,500.0,0.00030136,120]
[392887285,1762108069818,602.87,0.00030136,120]
[392887286,1762108070227,500.0,0.00030136,120]
[392887287,1762108070388,500.0,0.00030136,120]
[392887288,1762108070730,500.0,0.00030136,120]
[392887289,1762108070852,500.0,0.00030136,120]
[392887290,1762108072745,236.3546564,0.00030136,120]
[392887291,1762108073207,500.0,0.00030136,120]
[392887292,1762108074676,500.0,0.00030136,120]
[392887293,1762108074934,500.0,0.00030136,120]
[392887294,1762108075005,500.0,0.00030136,120]
[392887295,1762108075755,500.0,0.00030136,120]
[392887296,1762108076302,500.0,0.00030136,120]
[392887297,1762108077329,552.9363824,0.00030136,120]
[392887298,1762108080000,578.8,0.00030136,120]
[392887299,1762108081507,500.0,0.00030136,120]
[392887301,1762108082266,500.0,0.00030136,120]
[392887302,1762108083721,500.0,0.00030136,120]
[392887303,1762108085704,797.76,0.00030136,120]
[392887304,1762108085761,586.97,0.00030136,120]
[392887305,1762108086257,4673.42684495,0.0001439,2]
[392887306,1762108086683,500.0,0.00030136,120]
[392887307,1762108087536,500.0,0.00030136,120]
[392887308,1762108087599,500.0,0.00030136,120]
[392887309,1762108087736,500.0,0.00030136,120]
[392887310,1762108089151,247.56446448,0.000135,2]
[392887311,1762108089298,304.63429121,0.000125,2]
[392887312,1762108090390,543.38475324,0.00030136,120]
[392887313,1762108090679,500.0,0.00030136,120]
[392887314,1762108091275,500.0,0.00030136,120]
[392887316,1762108093514,500.0,0.00030136,120]
[392887317,1762108093796,500.0,0.00030136,120]
[392887318,1762108094206,500.0,0.00030136,120]
[392887319,1762108095879,659.6,0.00030137,120]
[392887320,1762108096309,1050.44,0.00030136,120]
[392887321,1762108097246,500.0,0.00030136,120]
[392887322,1762108097807,635.73,0.00030136,120]
[392887323,1762108098302,500.0,0.00030136,120]
[392887324,1762108098655,500.0,0.00030136,120]
[392887325,1762108099523,500.0,0.00030136,120]
[392887326,1762108099946,500.0,0.00030136,120]
[392887327,1762108101607,532.19526661,0.00030136,120]
[392887328,1762108102149,500.0,0.00030136,120]
[392887329,1762108102199,500.0,0.00030136,120]
[392887330,1762108102250,500.0,0.00030136,120]
[392887331,1762108103473,500.0,0.00030136,120]
[392887332,1762108105104,500.0,0.00030136,120]
[392887333,1762108105859,500.0,0.00030136,120]
[392887334,1762108106619,500.0,0.00030136,120]
[392887337,1762108106744,500.0,0.00030136,120]
[392887338,1762108107590,502.88,0.00030136,120]
[392887339,1762108107794,1286.29,0.00030136,120]
[392887340,1762108108582,500.0,0.00030136,120]
[392887341,1762108109779,500.0,0.00030136,120]
[392887342,1762108110866,500.0,0.00030136,120]
[392887343,1762108111671,500.0,0.00030136,120]
[392887344,1762108112641,500.0,0.00030136,120]
[392887346,1762108114123,500.0,0.00030136,120]
[392887347,1762108114457,500.0,0.00030136,120]
[392887348,1762108115740,536.09,0.00030136,120]
[392887349,1762108117442,300.0,0.00030136,120]
[392887350,1762108117667,500.0,0.00030136,120]
[392887351,1762108118687,500.0,0.00030136,120]
[392887352,1762108118840,1788.32,0.00030136,120]
[392887353,1762108120894,500.0,0.00030136,120]
[392887354,1762108121558,500.0,0.00030136,120]
[392887355,1762108122653,500.0,0.00030136,120]
[392887356,1762108124011,500.0,0.00030136,120]
[392887357,1762108124270,519.85771354,0.00030136,120]
[392887358,1762108126298,500.0,0.00030136,120]
[392887359,1762108127137,557.66,0.00030136,120]
[392887360,1762108128564,552.91,0.00030136,120]
[392887361,1762108132117,500.0,0.00030136,120]
[392887362,1762108133581,833.77,0.00030136,120]
[392887363,1762108135646,500.0,0.00030136,120]
[392887364,1762108136203,500.0,0.00030136,120]
[392887365,1762108136918,500.0,0.00030136,120]
[392887366,1762108137222,500.0,0.00030136,120]
[392887367,1762108137953,500.0,0.00030136,120]
[392887368,1762108138020,544.82,0.00030136,120]
[392887369,1762108138181,500.0,0.00030136,120]
[392887370,1762108139642,572.8,0.00030136,120]
[392887371,1762108141001,500.0,0.00030136,120]
[392887372,1762108141269,556.14292694,0.00030136,120]
[392887374,1762108142538,500.0,0.00030136,120]
[392887375,1762108145091,500.0,0.00030136,120]
[392887376,1762108145206,500.0,0.00030136,120]
[392887377,1762108145541,500.0,0.00030136,120]
[392887378,1762108145987,500.0,0.00030136,120]
[392887379,1762108148487,500.0,0.00030136,120]
[392887380,1762108149255,500.0,0.00030136,120]
[392887381,1762108150797,500.0,0.00030136,120]
[392887382,1762108153707,500.0,0.00030136,120]
[392887383,1762108153938,500.0,0.00030136,120]
[392887384,1762108154676,725.79,0.00030136,120]
[392887385,1762108155671,500.0,0.00030136,120]
[392887386,1762108157286,1440.34,0.00030136,120]
[392887387,1762108157696,820.26,0.00030136,120]
[392887388,1762108158245,612.56,0.00030136,120]
[392887389,1762108158774,500.0,0.00030136,120]
[392887390,1762108161109,797.22,0.00030136,120]
[392887391,1762108163942,500.0,0.00030136,120]
[392887392,1762108164428,500.0,0.00030136,120]
[392887393,1762108164872,500.0,0.00030136,120]
[392887394,1762108165536,500.0,0.00030136,120]
[392887395,1762108167114,500.0,0.00030136,120]
[392887396,1762108168372,500.0,0.00030136,120]
[392887397,1762108168864,529.87,0.00030136,120]
[392887398,1762108169068,500.0,0.00030136,120]
[392887399,1762108169277,500.0,0.00030136,120]
[392887400,1762108170623,838.44,0.00030136,120]
[392887401,1762108170699,532.7635507,0.00030136,120]
[392887402,1762108170975,441.69574441,0.00030136,120]
[392887403,1762108171027,500.0,0.00030136,120]
[392887404,1762108172780,500.0,0.00030136,120]
[392887405,1762108174459,245.51,0.00013828,2]
[392887406,1762108174517,245.51,0.00014596,2]
[392887407,1762108174842,500.0,0.00030136,120]
[392887408,1762108175072,500.0,0.00030136,120]
[392887409,1762108177071,518.57612702,0.00030136,120]
[392887410,1762108177905,500.0,0.00030136,120]
[392887411,1762108178397,500.0,0.00030136,120]
[392887412,1762108179643,500.0,0.00030136,120]
[392887413,1762108180187,500.0,0.00030136,120]
[392887414,1762108180374,500.0,0.00030136,120]
[392887415,1762108180748,500.0,0.00030136,120]
[392887416,1762108181007,500.0,0.00030136,120]
[392887417,1762108182158,500.0,0.00030136,120]
[392887418,1762108182821,676.48,0.00013828,2]
[392887422,1762108184719,398.81618924,0.00030136,120]
[392887423,1762108186504,500.0,0.00030136,120]
[392887424,1762108187358,736.74,0.00030136,120]
[392887425,1762108187444,500.0,0.00030136,120]
[392887426,1762108187498,500.0,0.00030136,120]
[392887427,1762108187943,500.0,0.00030136,120]
[392887428,1762108190307,500.0,0.00030136,120]
[392887429,1762108190352,500.0,0.00030136,120]
[392887430,1762108190417,500.0,0.00030136,120]
[392887431,1762108190473,500.0,0.00030136,120]
[392887432,1762108190609,500.0,0.00030136,120]
[392887433,1762108191317,500.0,0.00030136,120]
[392887434,1762108193517,500.0,0.00030136,120]
[392887435,1762108193914,830.86,0.00030136,120]
[392887436,1762108194365,692.02,0.00030136,120]
[392887437,1762108195465,1123.05,0.00030136,120]
[392887438,1762108195514,535.99405355,0.00030136,120]
[392887439,1762108196002,500.0,0.00030136,120]
[392887440,1762108196097,500.0,0.00030136,120]
[392887441,1762108197241,519.22370653,0.00030136,120]
[392887442,1762108198094,500.0,0.00030136,120]
[392887443,1762108198153,500.0,0.00030136,120]
[392887444,1762108198924,500.0,0.00030136,120]
[392887445,1762108199046,500.0,0.00030136,120]
[392887446,1762108199443,500.0,0.00030136,120]
[392887447,1762108200858,364.49337452,0.00030136,120]
[392887449,1762108201875,500.0,0.00030136,120]
[392887452,1762108203409,896.71,0.00030136,120]
[392887453,1762108203463,500.0,0.00030136,120]
[392887455,1762108205383,324.77618271,0.00030136,120]
[392887456,1762108206037,500.0,0.00030136,120]
[392887457,1762108207346,500.0,0.00030136,120]
[392887459,1762108207965,500.0,0.00030136,120]
[392887460,1762108209010,500.0,0.00030136,120]
[392887461,1762108209316,500.0,0.00030136,120]
[392887462,1762108210362,500.0,0.00030136,120]
[392887464,1762108210876,500.0,0.00030136,120]
[392887465,1762108212376,709.19,0.00030136,120]
[392887466,1762108212448,500.0,0.00030136,120]
[392887467,1762108212587,500.0,0.00030136,120]
[392887468,1762108212666,500.0,0.00030136,120]
[392887469,1762108215381,515.56365478,0.00030136,120]
[392887470,1762108215634,500.0,0.00030136,120]
[392887471,1762108215686,398.30280056,0.00030136,120]